fUSD/lending_fUSD_20240619
["ID","MTS","AMOUNT","RATE_DAILY","PERIOD"]
[329862147,1718770240603,-500.0,0.00013698,2]
[329862148,1718770240612,-500.0,0.00013698,2]
[329862149,1718770240621,-500.0,0.00013698,2]
[329862150,1718770240633,-500.0,0.00013698,2]
[329862151,1718770240642,-500.0,0.00013698,2]
[329862152,1718770240651,-500.0,0.00013698,2]
[329862153,1718770240661,-500.0,0.00013698,2]
[329862154,1718770240671,-500.0,0.00013698,2]
[329862155,1718770240680,-1540.39,0.00013698,2]
[329862156,1718770240690,-500.0,0.00013698,2]
[329862157,1718770240699,-500.0,0.00013698,2]
[329862158,1718770240708,-500.0,0.00013698,2]
[329862159,1718770240717,-500.0,0.00013698,2]
[329862160,1718770240727,-1250.8,0.00013698,2]
[329862161,1718770240736,-558.93,0.00013698,2]
[329862162,1718770240746,-501.02408797,0.00013698,2]
[329862163,1718770240755,-500.0,0.00013698,2]
[329862164,1718770240765,-502.46572523,0.00013698,2]
[329862165,1718770240774,-852.23,0.00013698,2]
[329862166,1718770240784,-500.0,0.00013698,2]
[329862167,1718770240793,-500.0,0.00013698,2]
[329862168,1718770240803,-1920.04,0.00013698,2]
[329862169,1718770240812,-500.0,0.00013698,2]
[329862170,1718770240822,-500.0,0.00013698,2]
[329862171,1718770240832,-938.87,0.00013698,2]
[329862172,1718770240841,-570.73,0.00013698,2]
[329862173,1718770240851,-913.35,0.00013698,2]
[329862174,1718770240861,-500.0,0.00013698,2]
[329862175,1718770240871,-500.0,0.00013698,2]
[329862176,1718770240883,-706.19,0.00013698,2]
[329862177,1718770240892,-500.0,0.00013698,2]
[329862178,1718770240902,-500.0,0.00013698,2]
[329862179,1718770240911,-1541.01,0.00013698,2]
[329862180,1718770240921,-500.0,0.00013698,2]
[329862181,1718770240932,-500.0,0.00013698,2]
[329862182,1718770240942,-755.57,0.00013698,2]
[329862183,1718770240951,-500.0,0.00013698,2]
[329862184,1718770240961,-500.0,0.00013698,2]
[329862185,1718770240971,-500.0,0.00013698,2]
[329862186,1718770240980,-506.15223681,0.00013698,2]
[329862187,1718770240990,-1402.18,0.00013698,2]
[329862188,1718770241001,-500.0,0.00013698,2]
[329862189,1718770241012,-500.0,0.00013698,2]
[329862190,1718770241022,-1400.99,0.00013698,2]
[329862191,1718770241032,-500.0,0.00013698,2]
[329862192,1718770241043,-500.0,0.00013698,2]
[329862193,1718770241052,-500.0,0.00013698,2]
[329862194,1718770241062,-500.0,0.00013698,2]
[329862195,1718770241071,-500.0,0.00013698,2]
[329862196,1718770241083,-500.0,0.00013698,2]
[329862197,1718770241094,-1900.82,0.00013698,2]
[329862198,1718770241103,-500.0,0.00013698,2]
[329862199,1718770241113,-500.0,0.00013698,2]
[329862200,1718770241123,-648.26408655,0.00013698,2]
[329862201,1718770241134,-500.0,0.00013698,2]
[329862202,1718770241143,-500.0,0.00013698,2]
[329862203,1718770241152,-500.0,0.00013698,2]
[329862204,1718770241161,-500.0,0.00013698,2]
[329862205,1718770241171,-500.0,0.00013698,2]
[329862206,1718770241180,-1794.3,0.00013698,2]
[329862207,1718770241189,-500.0,0.00013698,2]
[329862208,1718770241199,-2454.98,0.00013698,2]
[329862209,1718770241208,-500.0,0.00013698,2]
[329862210,1718770241218,-1586.97,0.00013698,2]
[329862211,1718770241227,-500.0,0.00013698,2]
[329862212,1718770241236,-500.0,0.00013698,2]
[329862213,1718770241245,-500.0,0.00013698,2]
[329862214,1718770241255,-2430.43,0.00013698,2]
[329862215,1718770241265,-500.0,0.00013698,2]
[329862216,1718770241275,-500.0,0.00013698,2]
[329862217,1718770241285,-1446.18,0.00013698,2]
[329862218,1718770241295,-1672.28,0.00013698,2]
[329862219,1718770241305,-796.75,0.00013698,2]
[329862220,1718770241314,-500.0,0.00013698,2]
[329862221,1718770241324,-500.0,0.00013698,2]
[329862222,1718770241334,-1767.61,0.00013698,2]
[329862223,1718770241343,-559.42806951,0.00013698,2]
[329862224,1718770241353,-151.0,0.00013698,2]
[329862225,1718770241362,-500.0,0.00013698,2]
[329862226,1718770241371,-156.76192972,0.00013698,2]
[329862227,1718770241381,-500.0,0.00013698,2]
[329862228,1718770241391,-500.0,0.00013698,2]
[329862229,1718770241400,-151.0,0.00013698,2]
[329862230,1718770241410,-500.0,0.00013698,2]
[329862231,1718770241419,-151.0,0.00013698,2]
[329862232,1718770241429,-500.0,0.00013698,2]
[329862233,1718770241438,-151.0,0.00013698,2]
[329862234,1718770241447,-151.0,0.00013698,2]
[329862235,1718770241457,-500.0,0.00013698,2]
[329862236,1718770241466,-500.0,0.00013698,2]
[329862237,1718770241476,-500.0,0.00013698,2]
[329862238,1718770241485,-865.11,0.00013698,2]
[329862239,1718770241495,-445.82763772,0.00013698,2]
[329862240,1718770241504,-500.0,0.00013698,2]
[329862241,1718770241514,-1412.19,0.00013698,2]
[329862242,1718770241524,-500.0,0.00013698,2]
[329862243,1718770241533,-2772.15,0.00013698,2]
[329862244,1718770241543,-500.0,0.00013698,2]
[329862245,1718770241552,-500.0,0.00013698,2]
[329862246,1718770241561,-511.73995659,0.00013698,2]
[329862247,1718770241570,-562.6,0.00013698,2]
[329862248,1718770241579,-500.0,0.00013698,2]
[329862249,1718770241588,-500.0,0.00013698,2]
[329862250,1718770241598,-500.0,0.00013698,2]
[329862251,1718770241607,-500.0,0.00013698,2]
[329862252,1718770241617,-500.0,0.00013698,2]
[329862253,1718770241626,-500.0,0.00013698,2]
[329862254,1718770241637,-500.0,0.00013698,2]
[329862255,1718770241647,-500.0,0.00013698,2]
[329862256,1718770241656,-500.0,0.00013698,2]
[329862257,1718770241665,-500.0,0.00013698,2]
[329862258,1718770241675,-500.0,0.00013698,2]
[329862259,1718770241684,-525.23899715,0.00013698,2]
[329862260,1718770241694,-500.0,0.00013698,2]
[329862261,1718770241704,-2000.84,0.00013698,2]
[329862262,1718770241713,-154.621333,0.00013698,2]
[329862263,1718770241723,-1971.83,0.00013698,2]
[329862264,1718770241733,-500.0,0.00013698,2]
[329862265,1718770241745,-500.0,0.00013698,2]
[329862266,1718770241756,-500.0,0.00013698,2]
[329862267,1718770241782,-902.21,0.00013698,2]
[329862268,1718770241792,-1372.91,0.00013698,2]
[329862269,1718770241802,-500.0,0.00013698,2]
[329862270,1718770241811,-500.0,0.00013698,2]
[329862271,1718770241821,-500.0,0.00013698,2]
[329862272,1718770241832,-1018.5,0.00013698,2]
[329862273,1718770241842,-1955.58,0.00013698,2]
[329862274,1718770241853,-500.0,0.00013698,2]
[329862275,1718770241864,-166.84229125,0.00013698,2]
[329862276,1718770241874,-1813.55,0.00013698,2]
[329862277,1718770241883,-500.0,0.00013698,2]
[329862278,1718770241893,-500.0,0.00013698,2]
[329862279,1718770241903,-500.0,0.00013698,2]
[329862280,1718770241912,-158.88429621,0.00013698,2]
[329862281,1718770241922,-500.0,0.00013698,2]
[329862282,1718770241933,-500.0,0.00013698,2]
[329862283,1718770241942,-384.13480285,0.00013698,2]
[329862296,1718770242827,-514.16519715,0.00013698,2]
[329862297,1718770242836,-500.0,0.00013698,2]
[329862298,1718770242846,-500.0,0.00013698,2]
[329862299,1718770242855,-1382.42,0.00013698,2]
[329862300,1718770242865,-500.0,0.00013698,2]
[329862301,1718770242874,-500.0,0.00013698,2]
[329862302,1718770242885,-908.23,0.00013698,2]
[329862303,1718770242894,-500.0,0.00013698,2]
[329862304,1718770242904,-2558.18,0.00013698,2]
[329862305,1718770242913,-1366.32,0.00013698,2]
[329862306,1718770242923,-500.0,0.00013698,2]
[329862307,1718770242932,-500.0,0.00013698,2]
[329862308,1718770242941,-500.0,0.00013698,2]
[329862309,1718770242951,-500.0,0.00013698,2]
[329862310,1718770242960,-500.0,0.00013698,2]
[329862312,1718770242970,-2887.03,0.00013698,2]
[329862314,1718770242979,-500.0,0.00013698,2]
[329862316,1718770242990,-500.0,0.00013698,2]
[329862318,1718770243004,-500.0,0.00013698,2]
[329862320,1718770243026,-500.0,0.00013698,2]
[329862321,1718770243045,-500.0,0.00013698,2]
[329862322,1718770243057,-695.64,0.00013698,2]
[329862323,1718770243068,-500.0,0.00013698,2]
[329862324,1718770243079,-1214.65,0.00013698,2]
[329862325,1718770243088,-500.0,0.00013698,2]
[329862326,1718770243098,-502.87173095,0.00013698,2]
[329862327,1718770243108,-825.11,0.00013698,2]
[329862328,1718770243117,-1053.04,0.00013698,2]
[329862329,1718770243127,-500.0,0.00013698,2]
[329862330,1718770243138,-500.0,0.00013698,2]
[329862331,1718770243147,-1146.84,0.00013698,2]
[329862332,1718770243156,-2998.71,0.00013698,2]
[329862333,1718770243165,-500.0,0.00013698,2]
[329862334,1718770243176,-500.0,0.00013698,2]
[329862335,1718770243186,-500.0,0.00013698,2]
[329862336,1718770243195,-5266.2,0.00013698,2]
[329862337,1718770243205,-1317.85,0.00013698,2]
[329862338,1718770243214,-503.96827277,0.00013698,2]
[329862339,1718770243225,-500.0,0.00013698,2]
[329862340,1718770243234,-500.0,0.00013698,2]
[329862341,1718770243245,-1044.71,0.00013698,2]
[329862342,1718770243255,-500.0,0.00013698,2]
[329862343,1718770243265,-1036.16,0.00013698,2]
[329862344,1718770243274,-1331.64,0.00013698,2]
[329862345,1718770243284,-4022.65,0.00013698,2]
[329862346,1718770243293,-500.0,0.00013698,2]
[329862347,1718770243303,-1551.12,0.00013698,2]
[329862348,1718770243313,-500.0,0.00013698,2]
[329862349,1718770243322,-500.0,0.00013698,2]
[329862350,1718770243332,-1253.55,0.00013698,2]
[329862351,1718770243342,-635.97,0.00013698,2]
[329862352,1718770243352,-500.0,0.00013698,2]
[329862353,1718770243362,-737.02,0.00013698,2]
[329862354,1718770243371,-466.86478491,0.00013698,2]
[329862355,1718770243380,-500.0,0.00013698,2]
[329862356,1718770243391,-521.08,0.00013698,2]
[329862357,1718770243399,-647.47,0.00013698,2]
[329862358,1718770243408,-1253.72,0.00013698,2]
[329862359,1718770243417,-502.88382601,0.00013698,2]
[329862360,1718770243427,-500.0,0.00013698,2]
[329862361,1718770243436,-500.0,0.00013698,2]
[329862362,1718770243446,-786.21,0.00013698,2]
[329862363,1718770243455,-1471.71,0.00013698,2]
[329862364,1718770243464,-504.47062855,0.00013698,2]
[329862365,1718770243473,-500.0,0.00013698,2]
[329862366,1718770243483,-500.0,0.00013698,2]
[329862367,1718770243492,-6735.02,0.00013698,2]
[329862368,1718770243501,-509.03055851,0.00013698,2]
[329862369,1718770243510,-500.0,0.00013698,2]
[329862370,1718770243519,-681.58,0.00013698,2]
[329862371,1718770243529,-500.0,0.00013698,2]
[329862372,1718770243539,-179.69849134,0.00013698,2]
[329862373,1718770243548,-151.0,0.00013698,2]
[329862374,1718770243557,-500.0,0.00013698,2]
[329862375,1718770243566,-500.0,0.00013698,2]
[329862376,1718770243575,-151.0,0.00013698,2]
[329862377,1718770243584,-500.0,0.00013698,2]
[329862378,1718770243593,-329.92166652,0.00013698,2]
[329862379,1718770243603,-2121.61,0.00013698,2]
[329862380,1718770243612,-1657.06,0.00013698,2]
[329862381,1718770243621,-500.0,0.00013698,2]
[329862382,1718770243631,-1322.42,0.00013698,2]
[329862383,1718770243641,-500.0,0.00013698,2]
[329862384,1718770243650,-151.0,0.00013698,2]
[329862385,1718770243660,-500.0,0.00013698,2]
[329862386,1718770243669,-500.0,0.00013698,2]
[329862387,1718770243678,-810.07,0.00013698,2]
[329862388,1718770243687,-810.07,0.00013698,2]
[329862389,1718770243696,-810.07,0.00013698,2]
[329862390,1718770243705,-810.07,0.00013698,2]
[329862392,1718770243716,-810.07,0.00013698,2]
[329862394,1718770243725,-810.07,0.00013698,2]
[329862395,1718770243736,-500.0,0.00013698,2]
[329862396,1718770243746,-810.07,0.00013698,2]
[329862397,1718770243755,-746.47,0.00013698,2]
[329862398,1718770243765,-500.0,0.00013698,2]
[329862399,1718770243774,-28492.62,0.00013698,2]
[329862400,1718770243783,-500.0,0.00013698,2]
[329862401,1718770243793,-500.0,0.00013698,2]
[329862402,1718770243802,-1778.24,0.00013698,2]
[329862403,1718770243811,-796.76,0.00013698,2]
[329862404,1718770243821,-500.0,0.00013698,2]
[329862405,1718770243830,-500.0,0.00013698,2]
[329862406,1718770243839,-500.0,0.00013698,2]
[329862407,1718770243849,-2063.34,0.00013698,2]
[329862408,1718770243858,-500.0,0.00013698,2]
[329862409,1718770243867,-1669.64,0.00013698,2]
[329862410,1718770243877,-500.0,0.00013698,2]
[329862411,1718770243886,-500.0,0.00013698,2]
[329862412,1718770243895,-648.06,0.00013698,2]
[329862413,1718770243905,-178.72451221,0.00013698,2]
[329862414,1718770243915,-1399.94,0.00013698,2]
[329862415,1718770243924,-1356.45,0.00013698,2]
[329862416,1718770243933,-3231.03,0.00013698,2]
[329862417,1718770243943,-1101.08,0.00013698,2]
[329862418,1718770243952,-2664.25,0.00013698,2]
[329862419,1718770243961,-1973.13,0.00013698,2]
[329862420,1718770243970,-500.0,0.00013698,2]
[329862421,1718770243979,-500.0,0.00013698,2]
[329862422,1718770243989,-500.0,0.00013698,2]
[329862423,1718770244002,-500.0,0.00013698,2]
[329862424,1718770244012,-939.04,0.00013698,2]
[329862425,1718770244021,-500.0,0.00013698,2]
[329862426,1718770244031,-881.36,0.00013698,2]
[329862427,1718770244041,-1198.85,0.00013698,2]
[329862428,1718770244051,-500.0,0.00013698,2]
[329862429,1718770244060,-500.0,0.00013698,2]
[329862430,1718770244070,-1435.26,0.00013698,2]
[329862431,1718770244081,-599.56,0.00013698,2]
[329862432,1718770244091,-151.0,0.00013698,2]
[329862433,1718770244100,-5672.73,0.00013698,2]
[329862434,1718770244110,-151.0,0.00013698,2]
[329862435,1718770244120,-151.0,0.00013698,2]
[329862436,1718770244129,-151.0,0.00013698,2]
[329862437,1718770244140,-151.0,0.00013698,2]
[329862438,1718770244149,-500.0,0.00013698,2]
[329862439,1718770244158,-500.0,0.00013698,2]
[329862440,1718770244168,-151.0,0.00013698,2]
[329862441,1718770244177,-4911.0,0.00013698,2]
[329862442,1718770244187,-500.0,0.00013698,2]
[329862443,1718770244196,-500.0,0.00013698,2]
[329862444,1718770244206,-500.0,0.00013698,2]
[329862445,1718770244215,-42929.5,0.00013698,2]
[329862446,1718770244224,-1620.55,0.00013698,2]
[329862447,1718770244235,-1184.65,0.00013698,2]
[329862448,1718770244244,-500.0,0.00013698,2]
[329862449,1718770244253,-1010.8,0.00013698,2]
[329862450,1718770244263,-585.26,0.00013698,2]
[329862451,1718770244272,-500.0,0.00013698,2]
[329862452,1718770244282,-4821.37,0.00013698,2]
[329862453,1718770244292,-151.0,0.00013698,2]
[329862454,1718770244301,-500.0,0.00013698,2]
[329862455,1718770244310,-151.0,0.00013698,2]
[329862456,1718770244320,-151.0,0.00013698,2]
[329862457,1718770244329,-151.0,0.00013698,2]
[329862458,1718770244339,-151.0,0.00013698,2]
[329862459,1718770244348,-607.84,0.00013698,2]
[329862460,1718770244357,-245.460987,0.00013698,2]
[329862461,1718770244366,-217.00221506,0.00013698,2]
[329862462,1718770244376,-3029.73,0.00013698,2]
[329862463,1718770244386,-500.0,0.00013698,2]
[329862464,1718770244395,-187.29179628,0.00013698,2]
[329862465,1718770244405,-1070.34,0.00013698,2]
[329862466,1718770244414,-1429.7,0.00013698,2]
[329862467,1718770244424,-634.07,0.00013698,2]
[329862468,1718770244433,-23689.32038539,0.00013698,2]
[329862469,1718770244495,-1562.84236931,0.00013698,2]
[329862470,1718770244523,-447.53187127,0.00013698,2]
[329862471,1718770244557,-293.26397614,0.00013698,2]
[329862472,1718770244570,-650.23905597,0.00013698,2]
[329862473,1718770244581,-1272.24,0.00013698,2]
[329862474,1718770244592,-850.5,0.00013698,2]
[329862475,1718770244630,-600.25276044,0.00013698,2]
[329862476,1718770244643,-860.35582076,0.00013698,2]
[329862519,1718770246658,-155.0,0.00010312,2]
[329862520,1718770246667,-335.58509284,0.00013597,2]
[329862521,1718770246678,-348.51291963,0.00013698,2]
[329862522,1718770246690,-445.29544274,0.00013698,2]
[329862523,1718770247182,-513.82539835,0.00013698,2]
[329862524,1718770247192,-500.0,0.00013698,2]
[329862525,1718770247201,-16258.36307609,0.00013698,2]
[329862526,1718770247224,-578.94692391,0.00013698,2]
[329862527,1718770247233,-990.16,0.00013698,2]
[329862528,1718770247243,-500.0,0.00013698,2]
[329862529,1718770247252,-459.35700103,0.00013698,2]
[329862530,1718770247262,-1676.37,0.00013698,2]
[329862531,1718770247272,-327.81156306,0.00013698,2]
[329862532,1718770247282,-1510.23889436,0.00013698,2]
[329862533,1718770247908,-500.0,0.00013698,2]
[329862534,1718770247922,-303.20110564,0.00013698,2]
[329862535,1718770247931,-236.96724272,0.00013698,2]
[329862536,1718770248130,-263.03275728,0.00013698,2]
[329862537,1718770248143,-601.77,0.00013698,2]
[329862538,1718770248152,-176.945035,0.00013698,2]
[329862539,1718770248162,-176.945035,0.00013698,2]
[329862540,1718770248171,-176.945035,0.00013698,2]
[329862541,1718770248181,-176.945035,0.00013698,2]
[329862542,1718770248189,-176.945035,0.00013698,2]
[329862543,1718770248198,-176.945035,0.00013698,2]
[329862544,1718770248207,-500.0,0.00013698,2]
[329862545,1718770248216,-1044.35,0.00013698,2]
[329862546,1718770248226,-552.91,0.00013698,2]
[329862547,1718770248235,-176.945035,0.00013698,2]
[329862548,1718770248245,-176.945035,0.00013698,2]
[329862549,1718770248254,-500.0,0.00013698,2]
[329862550,1718770248263,-176.945035,0.00013698,2]
[329862551,1718770248272,-2153.1,0.00013698,2]
[329862552,1718770248281,-176.945035,0.00013698,2]
[329862553,1718770248290,-928.07,0.00013698,2]
[329862554,1718770248299,-176.945035,0.00013698,2]
[329862555,1718770248309,-176.945035,0.00013698,2]
[329862556,1718770248318,-500.0,0.00013698,2]
[329862557,1718770248327,-500.0,0.00013698,2]
[329862558,1718770248337,-500.0,0.00013698,2]
[329862559,1718770248346,-3219.89,0.00013698,2]
[329862560,1718770248355,-500.0,0.00013698,2]
[329862561,1718770248363,-2052.21,0.00013698,2]
[329862562,1718770248373,-2541.76,0.00013698,2]
[329862563,1718770248382,-913.93,0.00013698,2]
[329862564,1718770248393,-13227.32,0.00013698,2]
[329862565,1718770248402,-18528.99,0.00013698,2]
[329862566,1718770248411,-1037.64,0.00013698,2]
[329862567,1718770248420,-2502.67,0.00013698,2]
[329862568,1718770248430,-2453.27,0.00013698,2]
[329862569,1718770248439,-638.69,0.00013698,2]
[329862570,1718770248448,-500.0,0.00013698,2]
[329862571,1718770248458,-500.0,0.00013698,2]
[329862572,1718770248468,-500.0,0.00013698,2]
[329862573,1718770248477,-500.0,0.00013698,2]
[329862574,1718770248486,-640.43,0.00013698,2]
[329862575,1718770248495,-500.0,0.00013698,2]
[329862576,1718770248504,-500.0,0.00013698,2]
[329862577,1718770248513,-1396.07,0.00013698,2]
[329862578,1718770248522,-151.0,0.00013698,2]
[329862579,1718770248531,-151.0,0.00013698,2]
[329862580,1718770248540,-1100.55,0.00013698,2]
[329862581,1718770248549,-151.0,0.00013698,2]
[329862582,1718770248558,-151.0,0.00013698,2]
[329862583,1718770248568,-1526.96,0.00013698,2]
[329862584,1718770248577,-151.0,0.00013698,2]
[329862585,1718770248587,-905.37,0.00013698,2]
[329862586,1718770248596,-3834.98,0.00013698,2]
[329862587,1718770248605,-571.96611539,0.00013698,2]
[329862588,1718770248618,-401.91901205,0.00013698,2]
[329862589,1718770248629,-454.18508886,0.00013698,2]
[329862590,1718770248800,-2757.9397837,0.00013698,2]
[329862591,1718770248809,-349.05688429,0.00013698,2]
[329862592,1718770250076,-1033.83954184,0.00013698,2]
[329862593,1718770251253,-155.0,0.00013697,2]
[329862594,1718770251266,-166.41431439,0.00013697,2]
[329862595,1718770251279,-1227.57945059,0.00013697,2]
[329862596,1718770251291,-1777.50206873,0.00013698,2]
[329862597,1718770251306,-819.14011474,0.00013698,2]
[329862598,1718770251320,-364.40324563,0.00013698,2]
[329862599,1718770251335,-68.87814477,0.00013698,2]
[329862600,1718770251347,-500.0,0.00013698,2]
[329862601,1718770251360,-500.0,0.00013698,2]
[329862602,1718770251371,-879.74,0.00013698,2]
[329862603,1718770251383,-212.81962116,0.00013698,2]
[329862604,1718770251400,-490.77037884,0.00013698,2]
[329862605,1718770251412,-406.81962114,0.00013698,2]
[329862606,1718770251432,-93.18037886,0.00013698,2]
[329862607,1718770251445,-1569.56,0.00013698,2]
[329862608,1718770251458,-1942.93,0.00013698,2]
[329862609,1718770251470,-203.30775923,0.00013698,2]
[329862610,1718770251622,-296.69224077,0.00013698,2]
[329862611,1718770251634,-2783.26850271,0.00013698,2]
[329862612,1718770251652,-500.0,0.00013698,2]
[329862613,1718770386279,168540.0,0.00025,60]
[329862615,1718770444298,151.0,0.00020887,30]
[329862616,1718770559465,-194.5,0.0001957,15]
[329862617,1718770559490,-150.5,0.0001958,15]
[329862618,1718770559515,-151.15,0.00019588,15]
[329862619,1718770559567,-903.85,0.0002,15]
[329862620,1718770714123,20549.0,0.00025,120]
[329862621,1718770920649,160.96590438,2e-05,14]
[329862648,1718771431741,-155.0,0.00010241,2]
[329862649,1718771431751,-762.42384341,0.00010242,2]
[329862650,1718771431762,-1255.12002951,0.00010243,2]
[329862651,1718771431771,-787.20968972,0.00010274,2]
[329862652,1718771431781,-657.75,0.00010501,2]
[329862653,1718771431791,-150.0,0.00012194,2]
[329862654,1718771431800,-300.0,0.00012235,2]
[329862655,1718771431809,-150.0,0.00012235,2]
[329862656,1718771431818,-1744.7624525,0.00012236,2]
[329862657,1718771431867,-3817.5972764,0.00012236,2]
[329862658,1718771431878,-1394.83594873,0.00012236,2]
[329862659,1718771431889,-468.09747962,0.00012236,2]
[329862660,1718771431916,-904.96532417,0.00012236,2]
[329862661,1718771431928,-357.46371413,0.00012236,2]
[329862662,1718771431940,-2186.65209013,0.00012236,2]
[329862663,1718771431951,-8867.85567197,0.00012236,2]
[329862664,1718771431963,-854.70609405,0.00012236,2]
[329862665,1718771432106,-600.86029727,0.00012236,2]
[329862666,1718771432175,-854.16488114,0.00012236,2]
[329862667,1718771432187,-464.47486671,0.00012236,2]
[329862668,1718771432198,-1132.38722525,0.00012236,2]
[329862669,1718771432210,-251.17667793,0.00012236,2]
[329862670,1718771432219,-250.0,0.00012245,2]
[329862671,1718771432228,-500.0,0.00012262,2]
[329862672,1718771432238,-200.0,0.00012275,2]
[329862673,1718771432247,-1740.38,0.00012275,2]
[329862674,1718771432257,-368.44332207,0.00012306,2]
[329862675,1718771432268,-2373.81667793,0.00012306,2]
[329862676,1718771432278,-288.0,0.00012313,2]
[329862677,1718771432287,-200.0,0.00012444,2]
[329862678,1718771432297,-196.61845645,0.00012551,2]
[329862679,1718771432306,-250.0,0.00012568,2]
[329862680,1718771432315,-7933.55,0.00012568,2]
[329862681,1718771432324,-712.0,0.00012607,2]
[329862683,1718771432334,-1690.84,0.00012666,2]
[329862685,1718771432343,-657.75,0.00012765,2]
[329862686,1718771432352,-341.26,0.00012878,2]
[329862688,1718771432363,-164.51,0.00012978,2]
[329862690,1718771432372,-150.0,0.00012978,2]
[329862692,1718771432381,-150.0,0.00012978,2]
[329862694,1718771432390,-150.0,0.00012978,2]
[329862696,1718771432405,-527.36,0.00012978,2]
[329862698,1718771432414,-423.43,0.00012978,2]
[329862700,1718771432423,-354.09,0.00012978,2]
[329862702,1718771432433,-150.0,0.00013178,2]
[329862704,1718771432443,-150.0,0.00013178,2]
[329862706,1718771432452,-150.0,0.00013178,2]
[329862707,1718771432461,-420.0,0.00013429,2]
[329862709,1718771432471,-10000.0,0.00013466,2]
[329862711,1718771432483,-12742.12384478,0.000135,2]
[329862713,1718771432494,-426.96530817,0.00013524,2]
[329862715,1718771432504,-990.02946469,0.00013532,2]
[329862717,1718771432513,-990.02946469,0.00013532,2]
[329862719,1718771432523,-174.39,0.00013545,2]
[329862721,1718771432532,-407.21139586,0.00013559,2]
[329862723,1718771432542,-4164.8972,0.00013596,2]
[329862725,1718771432552,-11971.19409585,0.00013598,2]
[329862727,1718771432561,-2610.88257623,0.00013598,2]
[329862728,1718771432570,-535.27975182,0.00013598,2]
[329862729,1718771432579,-176.77024666,0.00013598,2]
[329862730,1718771432589,-334.9025103,0.00013598,2]
[329862731,1718771432599,-1000.0,0.00013598,2]
[329862732,1718771432609,-154.84,0.000136,2]
[329862733,1718771432619,-150.0,0.000136,2]
[329862734,1718771432628,-394.0,0.000136,2]
[329862735,1718771432637,-399.0762608,0.00013672,2]
[329862736,1718771432647,-216.40400055,0.00013687,2]
[329862737,1718771432656,-285.77050627,0.00013696,2]
[329862738,1718771432665,-954.17338665,0.00013696,2]
[329862739,1718771432675,-653.97724019,0.00013696,2]
[329862740,1718771432684,-303.27975808,0.00013696,2]
[329862741,1718771432693,-313.5058469,0.00013696,2]
[329862742,1718771432702,-258.31960914,0.00013696,2]
[329862743,1718771432712,-317.17607731,0.00013696,2]
[329862744,1718771432721,-42654.63839473,0.00013697,2]
[329862745,1718771432731,-596.77026361,0.00013697,2]
[329862746,1718771432741,-158.26702422,0.00013697,2]
[329862747,1718771432750,-577210.49607378,0.00013697,2]
[329862753,1718771437756,-5576.98153299,0.00013697,2]
[329862754,1718771437768,-522.21273873,0.00013697,2]
[329862755,1718771437779,-286.3073085,0.00013697,2]
[329862756,1718771437803,-1011.37129971,0.00013697,2]
[329862757,1718771437815,-58000.7781503,0.00013697,2]
[329862758,1718771437826,-11367.20421701,0.00013697,2]
[329862759,1718771437837,-295.82028696,0.00013697,2]
[329862760,1718771437975,-8211.25435294,0.00013697,2]
[329862761,1718771437987,-6261.3347441,0.00013697,2]